[Event "Queens Festival Europe 2022"]
[Site "Tornelo"]
[Date "2022.06.19"]
[Round "9.5"]
[White "Ayzenberg, Alena"]
[Black "Richtrova, Eliska"]
[Result "1-0"]
[ECO "E94"]
[WhiteElo "2016"]
[BlackElo "2204"]
[Annotator "TA"]
[PlyCount "111"]
[EventDate "2022.06.19"]
[EventType "swiss"]
[EventCountry "NET"]
[SourceTitle "playchess.com"]
[Source "ChessBase"]
[SourceQuality "1"]
[TimeControl "180+2"]

{[%evp 16,111,53,51,63,26,42,9,76,0,-8,-2,-10,0,0,-80,-93,-101,-78,-88,-95,-91,-48,-121,-77,-100,-81,-75,0,-50,-18,-70,-77,-70,15,7,18,-404,-277,-277,-277,-613,-588,-528,343,331,302,158,369,112,349,349,488,460,431,460,452,443,431,387,375,324,675,670,763,731,630,611,772,505,505,505,505,505,853,837,830,505,505,505,505,505,731,505,505,505,505,497,497,497,494,0,464,450,496,487,447,432]} 1. d4 {[%emt 0:00:02]} d6 {[%emt 0:00:11]} 2. Nf3 {[%emt 0:00:03]} Nf6 {[%emt 0:00:02]} 3. c4 {[%emt 0:00:03]} g6 {[%emt 0:00:01]} 4. Nc3 {[%emt 0:00:02]} Bg7 {[%emt 0:00:02]} 5. e4 {[%emt 0:00:02]} O-O {[%emt 0:00:02]} 6. Be2 {[%emt 0:00:02]} Nbd7 {[%emt 0:00:02]} 7. O-O {[%emt 0:00:03]} e5 {[%emt 0:00:02]} 8. d5 {[%emt 0:00:03]} Nh5 {[%emt 0:00:03]} 9. g3 {[%emt 0:00:10] [#]} Qe7 $146 {[%emt 0:00:13] E94: King's Indian: Classical: 6 Be2 e5 7 0-0: Various Black 7th moves.} ({Predecessor:} 9... Bf6 10. Bh6 Ng7 11. Qd2 Be7 12. Ne1 Nf6 13. f3 Bh3 14. Rf2 Kh8 15. Nd3 Ng8 16. Be3 f5 17. Bf1 {½-½ (17) Paramos Dominguez,R (2398)-Martinez Duany,L (2450) Famalicao 2015}) 10. Bd2 {[%emt 0:00:28]} a5 {[%emt 0:00:04]} 11. Qc2 {[%emt 0:00:06]} f5 {[%emt 0:00:12]} (11... Nc5 $11) 12. Ng5 {[%emt 0:00:11] White is more active.} (12. exf5 $16 Rxf5 13. g4 Rxf3 14. Bxf3) 12... Nc5 $11 {[%emt 0:00:07]} 13. exf5 {[%emt 0:00:20]} Bxf5 {[%emt 0:00:09]} 14. Nge4 {[%emt 0:00:06]} Nf6 {[%emt 0:00:13]} 15. Nxf6+ {[%emt 0:00:06]} (15. f3 $11) 15... Qxf6 $17 {[%emt 0:00:12]} 16. Qd1 {[%emt 0:00:15]} Bh3 {[%emt 0:00:05]} 17. Be3 {[%emt 0:00:13]} Bxf1 {[%emt 0:00:15]} 18. Bxf1 {[%emt 0:00:02]} Qf5 {[%emt 0:00:07]} 19. Qe2 {[%emt 0:00:22]} (19. Be2 $1 $15) 19... b6 {[%emt 0:00:06]} 20. Rd1 {[%emt 0:00:12]} a4 {[%emt 0:00:03]} 21. Bg2 {[%emt 0:00:04]} a3 {[%emt 0:00:09]} (21... Qh5 $17 22. Qxh5 gxh5) 22. b3 {[%emt 0:00:03]} (22. b4 $11 Na4 23. Ne4) 22... Rf7 {[%emt 0:00:10]} (22... e4 $5 {[%cal Rg7c3]} 23. Nb5 Rf7 $15) 23. h4 {[%emt 0:00:03]} (23. b4 $11 Na4 24. Ne4) 23... e4 $1 $15 {[%emt 0:00:15][%cal Be5e4,Be4e3][%mdl 32]} 24. Nb5 {[%emt 0:00:14]} Nxb3 {[%emt 0:00:10]} 25. axb3 $11 {[%emt 0:00:15] [#] Hoping for Rd2.} a2 {[%emt 0:00:03]} 26. Bd4 {[%emt 0:00:03][%mdl 8192]} (26. Nd4 $11 {and White is okay.} Qh5 27. Qxh5 gxh5 28. Ra1) 26... Bxd4 {[%emt 0:00:14]} 27. Nxd4 {[%emt 0:00:02]} Qe5 {[%emt 0:00:16]} 28. Qb2 {[%emt 0:00:14]} (28. Qe1) 28... e3 $19 {[%emt 0:00:06]} 29. f4 {[%emt 0:00:05]} Qh5 {[%emt 0:00:03][%mdl 8192]} (29... e2 $1 $19 {[%cal Re2d1] avoids the disaster.} 30. Qxe2 Qxe2 31. Nxe2 a1=Q 32. Rxa1 Rxa1+ 33. Kf2 Rb1) 30. Bf3 $18 {[%emt 0:00:05]} Qh6 {[%emt 0:00:01]} 31. Kg2 {[%emt 0:00:02]} ({White should try} 31. Bg4 $18) 31... Qf8 $2 {[%emt 0:00:04]} (31... Qg7 $16) 32. Ne2 $2 {[%emt 0:00:01]} ({But not} 32. Ne6 Qe7 33. Ra1 Qf6 34. Rxa2 Ra5 $18) (32. Bg4 $18 {is more deadly.}) 32... Qe7 $2 {[%emt 0:00:05]} (32... Qg7 $16 {was necessary.} 33. Qxg7+ Kxg7) 33. Ra1 {[%emt 0:00:02]} b5 {[%emt 0:00:04]} 34. Rxa2 {[%emt 0:00:02]} Rxa2 {[%emt 0:00:02]} 35. Qxa2 {[%emt 0:00:01]} bxc4 {[%emt 0:00:02]} 36. bxc4 {[%emt 0:00:01]} Qf6 {[%emt 0:00:03]} 37. Qc2 {[%emt 0:00:02]} Re7 {[%emt 0:00:03]} 38. Qd3 {[%emt 0:00:02]} h5 $2 {[%emt 0:00:05]} (38... Qb2 39. h5 Kg7) 39. Be4 {[%emt 0:00:02]} Kg7 {[%emt 0:00:02]} 40. Qxe3 {[%emt 0:00:02]} Qb2 {[%emt 0:00:04]} 41. Qd3 {[%emt 0:00:02]} Qa2 {[%emt 0:00:05]} 42. Bf3 {[%emt 0:00:02]} Qb2 {[%emt 0:00:03]} 43. Qd4+ {[%emt 0:00:02]} Qxd4 {[%emt 0:00:02]} 44. Nxd4 {[%emt 0:00:01] [#] f5 is the strong threat.} Re3 {[%emt 0:00:01]} (44... Kf6 $142 45. Kf2 Rh7) 45. Kf2 {[%emt 0:00:03]} Rc3 {[%emt 0:00:02]} 46. Ne6+ {[%emt 0:00:02]} Kf6 {[%emt 0:00:02]} 47. Nxc7 {[%emt 0:00:02]} Rxc4 {[%emt 0:00:02]} 48. Nb5 {[%emt 0:00:02]} Rb4 {[%emt 0:00:03]} 49. Nc3 {[%emt 0:00:02]} Rb3 {[%emt 0:00:04]} 50. Ne4+ {[%emt 0:00:02]} Ke7 {[%emt 0:00:03]} 51. Ng5 {[%emt 0:00:02]} Rb2+ {[%emt 0:00:02]} 52. Ke3 {[%emt 0:00:02]} Rb3+ {[%emt 0:00:02]} 53. Kf2 {[%emt 0:00:02]} Rb2+ {[%emt 0:00:01]} 54. Be2 {[%emt 0:00:01] White is clearly winning.} Ra2 {[%emt 0:00:03]} 55. Ke3 {[%emt 0:00:02]} Ra3+ {[%emt 0:00:02]} 56. Bd3 {[%emt 0:00:02] Weighted Error Value: White=0.79/Black=0.69} 1-0

[Event "Queens Festival Europe 2022"]
[Site "Tornelo"]
[Date "2022.06.19"]
[Round "9.5"]
[White "Can, Isil"]
[Black "Shuqja, Klean"]
[Result "1/2-1/2"]
[ECO "C77"]
[WhiteElo "1901"]
[BlackElo "1839"]
[Annotator "NA RC"]
[PlyCount "174"]
[EventDate "2022.06.19"]
[EventType "swiss"]
[EventCountry "NET"]
[SourceTitle "playchess.com"]
[Source "ChessBase"]
[SourceQuality "1"]
[TimeControl "180+2"]

1. e4 {[%emt 0:00:02]} e5 {[%emt 0:00:05]} 2. Nf3 {[%emt 0:00:02]} Nc6 {[%emt 0:00:07]} 3. Bc4 {[%emt 0:00:04]} Be7 {[%emt 0:00:02]} 4. c3 {[%emt 0:00:04]} Nf6 {[%emt 0:00:04]} 5. d3 {[%emt 0:00:06]} O-O {[%emt 0:00:02]} 6. O-O {[%emt 0:00:02]} d6 {[%emt 0:00:06]} 7. Nbd2 {[%emt 0:00:01]} Na5 {[%emt 0:00:02]} 8. Bb5 {[%emt 0:00:07]} a6 {[%emt 0:00:02]} 9. Ba4 {[%emt 0:00:01]} b5 {[%emt 0:00:00]} 10. Bc2 {[%emt 0:00:02]} c5 {[%emt 0:00:02]} 11. d4 {[%emt 0:00:06]} Qc7 {[%emt 0:00:10]} 12. h3 {[%emt 0:00:04]} Bd7 {[%emt 0:00:19]} 13. b3 {[%emt 0:00:20]} Rac8 {[%emt 0:00:12]} 14. d5 {[%emt 0:00:01]} c4 {[%emt 0:00:05]} 15. b4 {[%emt 0:00:02]} Nb7 {[%emt 0:00:02]} 16. Re1 {[%emt 0:00:07]} Ra8 {[%emt 0:00:15]} 17. a3 {[%emt 0:00:49]} a5 {[%emt 0:00:11]} 18. Bb2 {[%emt 0:00:02]} axb4 {[%emt 0:00:06]} 19. axb4 {[%emt 0:00:01]} Rxa1 {[%emt 0:00:02]} 20. Qxa1 {[%emt 0:00:04]} Qb6 {[%emt 0:00:17]} 21. Nf1 {[%emt 0:00:06]} Nh5 {[%emt 0:00:13]} 22. Bc1 {[%emt 0:00:04]} f5 {[%emt 0:00:11]} 23. Be3 {[%emt 0:00:06]} Qc7 {[%emt 0:00:02]} 24. Qa7 {[%emt 0:00:10]} f4 {[%emt 0:00:18]} 25. Bb6 {[%emt 0:00:02]} Qc8 {[%emt 0:00:11]} 26. Ra1 {[%emt 0:00:04]} g5 {[%emt 0:00:10]} 27. Bd1 {[%emt 0:00:13]} Nf6 {[%emt 0:00:03]} 28. Nxg5 {[%emt 0:00:12]} h6 {[%emt 0:00:04]} 29. Ne6 {[%emt 0:00:12]} Bxe6 {[%emt 0:00:05]} 30. dxe6 {[%emt 0:00:01]} Nxe4 {[%emt 0:00:05]} 31. Bf3 {[%emt 0:00:02]} d5 {[%emt 0:00:06]} 32. Bxe4 {[%emt 0:00:24]} dxe4 {[%emt 0:00:00]} 33. Nd2 {[%emt 0:00:02]} Qc6 {[%emt 0:00:03]} 34. Re1 {[%emt 0:00:08]} Bd6 {[%emt 0:00:16]} 35. Nxe4 {[%emt 0:00:04]} Bb8 {[%emt 0:00:02]} 36. Qa6 {[%emt 0:00:06]} Bc7 {[%emt 0:00:04]} 37. Nc5 {[%emt 0:00:05]} Nxc5 {[%emt 0:00:07]} 38. bxc5 {[%emt 0:00:02]} Qxe6 {[%emt 0:00:04]} 39. Qa7 {[%emt 0:00:02]} Bxb6 {[%emt 0:00:03]} 40. Qxb6 {[%emt 0:00:01]} Qxb6 {[%emt 0:00:01]} 41. cxb6 {[%emt 0:00:02]} Rb8 {[%emt 0:00:02]} 42. Rxe5 {[%emt 0:00:02]} Rxb6 {[%emt 0:00:01]} 43. Rc5 {[%emt 0:00:02]} Kf7 {[%emt 0:00:02]} 44. Rf5+ {[%emt 0:00:02]} Ke6 {[%emt 0:00:02]} 45. Rxf4 {[%emt 0:00:01]} Ke5 {[%emt 0:00:01]} 46. Rg4 {[%emt 0:00:03]} b4 {[%emt 0:00:03]} 47. cxb4 {[%emt 0:00:03]} Rxb4 {[%emt 0:00:03]} 48. Kf1 {[%emt 0:00:02]} Rb1+ {[%emt 0:00:02]} 49. Ke2 {[%emt 0:00:01]} Rb2+ {[%emt 0:00:01]} 50. Ke3 {[%emt 0:00:03]} Kd5 {[%emt 0:00:03]} 51. Rh4 {[%emt 0:00:02]} Rb3+ {[%emt 0:00:02]} 52. Kd2 {[%emt 0:00:02]} Rb2+ {[%emt 0:00:01]} 53. Kc3 {[%emt 0:00:01]} Rxf2 {[%emt 0:00:02]} 54. Rh5+ {[%emt 0:00:01]} Ke6 {[%emt 0:00:02]} 55. Rxh6+ {[%emt 0:00:02]} Kf5 {[%emt 0:00:02]} 56. g4+ {[%emt 0:00:03]} Kg5 {[%emt 0:00:02]} 57. Rh5+ {[%emt 0:00:01]} Kf4 {[%emt 0:00:01]} 58. Kxc4 {[%emt 0:00:01]} Rh2 {[%emt 0:00:03]} 59. Kd5 {[%emt 0:00:02]} Re2 {[%emt 0:00:02]} 60. Rf5+ {[%emt 0:00:03]} Kg3 {[%emt 0:00:02]} 61. Rh5 {[%emt 0:00:03]} Kf4 {[%emt 0:00:01]} 62. Kd6 {[%emt 0:00:03]} Kg3 {[%emt 0:00:02]} 63. Rh6 {[%emt 0:00:03]} Kf4 {[%emt 0:00:02]} 64. Rg6 {[%emt 0:00:02]} Rh2 {[%emt 0:00:04]} 65. Rh6 {[%emt 0:00:02]} Re2 {[%emt 0:00:01]} 66. Rg6 {[%emt 0:00:04]} Rh2 {[%emt 0:00:02]} 67. Rf6+ {[%emt 0:00:02]} Kg5 {[%emt 0:00:02]} 68. Rf3 {[%emt 0:00:01]} Re2 {[%emt 0:00:03]} 69. Kd5 {[%emt 0:00:02]} Re1 {[%emt 0:00:02]} 70. Rf5+ {[%emt 0:00:02]} Kh4 {[%emt 0:00:02]} 71. Rh5+ {[%emt 0:00:01]} Kg3 {[%emt 0:00:01]} 72. g5 {[%emt 0:00:01]} Kf4 {[%emt 0:00:01]} 73. g6 {[%emt 0:00:02]} Rg1 {[%emt 0:00:02]} 74. Rh6 {[%emt 0:00:04]} Kf5 {[%emt 0:00:02]} 75. h4 {[%emt 0:00:02]} Rxg6 {[%emt 0:00:02]} 76. Rh8 {[%emt 0:00:02]} Kf6 {[%emt 0:00:02]} 77. Ke4 {[%emt 0:00:02]} Kg7 {[%emt 0:00:01]} 78. Rh5 {[%emt 0:00:01]} Rg4+ {[%emt 0:00:02]} 79. Kf3 {[%emt 0:00:02]} Rg6 {[%emt 0:00:01]} 80. Kf4 {[%emt 0:00:01]} Rg1 {[%emt 0:00:02]} 81. Ra5 {[%emt 0:00:02]} Rg2 {[%emt 0:00:02]} 82. h5 {[%emt 0:00:01]} Rg1 {[%emt 0:00:02]} 83. Ra7+ {[%emt 0:00:02]} Kh6 {[%emt 0:00:01]} 84. Ra5 {[%emt 0:00:02]} Rg2 {[%emt 0:00:03]} 85. Kf3 {[%emt 0:00:02]} Rg5 {[%emt 0:00:02]} 86. Rxg5 {[%emt 0:00:06]} Kxg5 {[%emt 0:00:01]} 87. Kg3 {[%emt 0:00:01]} Kxh5 {[%emt 0:00:02]} 1/2-1/2

[Event "Queens Festival Europe 2022"]
[Site "Tornelo"]
[Date "2022.06.19"]
[Round "9.5"]
[White "Omeri, Eklea"]
[Black "Bayona, Karin Silvana"]
[Result "1-0"]
[ECO "D93"]
[WhiteElo "1525"]
[BlackElo "1793"]
[Annotator "NA RC"]
[PlyCount "85"]
[EventDate "2022.06.19"]
[EventType "swiss"]
[EventCountry "NET"]
[SourceTitle "playchess.com"]
[Source "ChessBase"]
[SourceQuality "1"]
[TimeControl "180+2"]

1. d4 {[%emt 0:00:02]} Nf6 {[%emt 0:00:05]} 2. c4 {[%emt 0:00:02]} g6 {[%emt 0:00:01]} 3. Nc3 {[%emt 0:00:03]} d5 {[%emt 0:00:01]} 4. Nf3 {[%emt 0:00:04]} Bg7 {[%emt 0:00:03]} 5. Bf4 {[%emt 0:00:02]} O-O {[%emt 0:00:02]} 6. e3 {[%emt 0:00:02]} c5 {[%emt 0:00:09]} 7. cxd5 {[%emt 0:00:05]} Nxd5 {[%emt 0:00:08]} 8. Nxd5 {[%emt 0:00:02]} Qxd5 {[%emt 0:00:03]} 9. Be2 {[%emt 0:00:33]} cxd4 {[%emt 0:00:06]} 10. exd4 {[%emt 0:00:06]} Nc6 {[%emt 0:00:14]} 11. Be3 {[%emt 0:00:06]} Qa5+ {[%emt 0:00:23]} 12. Qd2 {[%emt 0:00:04]} Qxd2+ {[%emt 0:00:04]} 13. Kxd2 {[%emt 0:00:03]} Bf5 {[%emt 0:00:05]} 14. Rac1 {[%emt 0:00:05]} Rfd8 {[%emt 0:00:08]} 15. Kc3 {[%emt 0:00:16]} Rac8 {[%emt 0:00:09]} 16. Bc4 {[%emt 0:00:26]} Na5 {[%emt 0:00:10]} 17. b3 {[%emt 0:00:04]} b5 {[%emt 0:00:12]} 18. Kb4 {[%emt 0:00:02]} Nc6+ {[%emt 0:00:12]} 19. Kxb5 {[%emt 0:00:03]} Nxd4+ {[%emt 0:00:16]} 20. Bxd4 {[%emt 0:00:03]} Rb8+ {[%emt 0:00:15]} 21. Kc5 {[%emt 0:00:06]} Rbc8+ {[%emt 0:00:02]} 22. Kb5 {[%emt 0:00:04]} Rb8+ {[%emt 0:00:02]} 23. Ka4 {[%emt 0:00:24]} Bxd4 {[%emt 0:00:05]} 24. Nxd4 {[%emt 0:00:02]} Rxd4 {[%emt 0:00:03]} 25. Rhd1 {[%emt 0:00:04]} Rbd8 {[%emt 0:00:12]} 26. Rxd4 {[%emt 0:00:03]} Rxd4 {[%emt 0:00:02]} 27. Ka3 {[%emt 0:00:09]} Rd2 {[%emt 0:00:04]} 28. Rf1 {[%emt 0:00:03]} e5 {[%emt 0:00:10]} 29. h3 {[%emt 0:00:03]} e4 {[%emt 0:00:02]} 30. g4 {[%emt 0:00:04]} Bd7 {[%emt 0:00:09]} 31. f3 {[%emt 0:00:04]} exf3 {[%emt 0:00:17]} 32. Rxf3 {[%emt 0:00:02]} Bc6 {[%emt 0:00:03]} 33. Rxf7 {[%emt 0:00:04]} Kh8 {[%emt 0:00:01]} 34. Rc7 {[%emt 0:00:08]} Bg2 {[%emt 0:00:02]} 35. h4 {[%emt 0:00:04]} Bh3 {[%emt 0:00:02]} 36. Be6 {[%emt 0:00:10]} Rd4 {[%emt 0:00:03]} 37. Rc4 {[%emt 0:00:02]} Rd6 {[%emt 0:00:02]} 38. Bc8 {[%emt 0:00:04]} Rd8 {[%emt 0:00:03]} 39. Kb4 {[%emt 0:00:05]} Rd6 {[%emt 0:00:02]} 40. g5 {[%emt 0:00:04]} Rb6+ {[%emt 0:00:03]} 41. Kc3 {[%emt 0:00:04]} Rd6 {[%emt 0:00:03]} 42. Bxh3 {[%emt 0:00:03]} a6 {[%emt 0:00:04]} 43. Bc8 {[%emt 0:00:04]} 1-0

[Event "Queens Festival Europe 2022"]
[Site "Tornelo"]
[Date "2022.06.19"]
[Round "9.5"]
[White "Strnadova, Monika"]
[Black "Ostafiev, Cristina"]
[Result "1-0"]
[ECO "C53"]
[WhiteElo "1518"]
[BlackElo "1173"]
[Annotator "NA RC"]
[PlyCount "45"]
[EventDate "2022.06.19"]
[EventType "swiss"]
[EventCountry "NET"]
[SourceTitle "playchess.com"]
[Source "ChessBase"]
[SourceQuality "1"]
[TimeControl "180+2"]

1. e4 {[%emt 0:00:02]} e5 {[%emt 0:00:11]} 2. Nf3 {[%emt 0:00:02]} Nc6 {[%emt 0:00:05]} 3. Bc4 {[%emt 0:00:01]} Bc5 {[%emt 0:00:03]} 4. c3 {[%emt 0:00:02]} d6 {[%emt 0:00:02]} 5. d4 {[%emt 0:00:01]} exd4 {[%emt 0:00:02]} 6. cxd4 {[%emt 0:00:02]} Bb4+ {[%emt 0:00:01]} 7. Bd2 {[%emt 0:00:01]} Bxd2+ {[%emt 0:00:16]} 8. Nbxd2 {[%emt 0:00:03]} Bg4 {[%emt 0:00:02]} 9. Qb3 {[%emt 0:00:16]} Nh6 {[%emt 0:00:13]} 10. Qxb7 {[%emt 0:00:04]} Rb8 {[%emt 0:00:07]} 11. Qxc6+ {[%emt 0:00:02]} Bd7 {[%emt 0:00:03]} 12. Qd5 {[%emt 0:00:04]} Be6 {[%emt 0:00:31]} 13. Bb5+ {[%emt 0:00:08]} c6 {[%emt 0:00:12]} 14. Bxc6+ {[%emt 0:00:05]} Bd7 {[%emt 0:00:14]} 15. Bxd7+ {[%emt 0:00:08]} Qxd7 {[%emt 0:00:03]} 16. O-O {[%emt 0:00:02]} Rxb2 {[%emt 0:00:08]} 17. Nc4 {[%emt 0:00:04]} Rb8 {[%emt 0:00:06]} 18. Nxd6+ {[%emt 0:00:01]} Kf8 {[%emt 0:00:18]} 19. Ne5 {[%emt 0:00:02]} Qc7 {[%emt 0:00:39]} 20. Rac1 {[%emt 0:00:07]} Qe7 {[%emt 0:00:22]} 21. Nc6 {[%emt 0:00:01]} Qf6 {[%emt 0:00:02]} 22. Nxb8 {[%emt 0:00:03]} Ng4 {[%emt 0:00:03]} 23. Nf5 {[%emt 0:00:10]} 1-0

[Event "Queens Festival Europe 2022"]
[Site "Tornelo"]
[Date "2022.06.19"]
[Round "9.6"]
[White "Machlik, Edit"]
[Black "Tsakona, Maria"]
[Result "0-1"]
[ECO "E32"]
[WhiteElo "2084"]
[BlackElo "2007"]
[Annotator "NA RC"]
[PlyCount "52"]
[EventDate "2022.06.19"]
[EventType "swiss"]
[EventCountry "NET"]
[SourceTitle "playchess.com"]
[Source "ChessBase"]
[SourceQuality "1"]
[TimeControl "180+2"]

1. d4 {[%emt 0:00:02]} Nf6 {[%emt 0:00:04]} 2. c4 {[%emt 0:00:04]} e6 {[%emt 0:00:02]} 3. Nc3 {[%emt 0:00:01]} Bb4 {[%emt 0:00:01]} 4. Qc2 {[%emt 0:00:01]} O-O {[%emt 0:00:02]} 5. a3 {[%emt 0:00:02]} Bxc3+ {[%emt 0:00:01]} 6. Qxc3 {[%emt 0:00:01]} d6 {[%emt 0:00:01]} 7. f3 {[%emt 0:00:05]} Qe7 {[%emt 0:00:03]} 8. e4 {[%emt 0:00:06]} e5 {[%emt 0:00:00]} 9. d5 {[%emt 0:00:04]} a5 {[%emt 0:00:02]} 10. b3 {[%emt 0:00:03]} Nbd7 {[%emt 0:00:01]} 11. Be3 {[%emt 0:00:03]} b6 {[%emt 0:00:02]} 12. Bd3 {[%emt 0:00:02]} Nc5 {[%emt 0:00:02]} 13. Ne2 {[%emt 0:00:02]} Bd7 {[%emt 0:00:03]} 14. O-O {[%emt 0:00:03]} Nh5 {[%emt 0:00:05]} 15. b4 {[%emt 0:00:03]} Nxd3 {[%emt 0:00:10]} 16. Qxd3 {[%emt 0:00:02]} f5 {[%emt 0:00:00]} 17. c5 {[%emt 0:00:10]} f4 {[%emt 0:00:28]} 18. Bf2 {[%emt 0:00:05]} b5 {[%emt 0:00:25]} 19. Nc3 {[%emt 0:00:32]} Qg5 {[%emt 0:00:22]} 20. Nxb5 {[%emt 0:00:20]} Bh3 {[%emt 0:00:06]} 21. Bg3 {[%emt 0:01:09]} fxg3 {[%emt 0:00:21]} 22. gxh3 {[%emt 0:00:14]} Nf4 {[%emt 0:00:02]} 23. Qc2 {[%emt 0:00:10]} g2 {[%emt 0:00:11]} 24. Kf2 {[%emt 0:00:05]} Nxh3+ {[%emt 0:00:17]} 25. Ke2 {[%emt 0:00:04]} gxf1=Q+ {[%emt 0:00:03]} 26. Kxf1 {[%emt 0:00:10]} Qg1+ {[%emt 0:00:02]} 0-1

[Event "Queens Festival Europe 2022"]
[Site "Tornelo"]
[Date "2022.06.19"]
[Round "9.6"]
[White "Shabanaj, Eglantina"]
[Black "Cassi, Elisa"]
[Result "1-0"]
[ECO "E54"]
[WhiteElo "1986"]
[BlackElo "1999"]
[Annotator "NA RC"]
[PlyCount "113"]
[EventDate "2022.06.19"]
[EventType "swiss"]
[EventCountry "NET"]
[SourceTitle "playchess.com"]
[Source "ChessBase"]
[SourceQuality "1"]
[TimeControl "180+2"]

1. d4 {[%emt 0:00:02]} d5 {[%emt 0:00:06]} 2. c4 {[%emt 0:00:03]} e6 {[%emt 0:00:02]} 3. Nc3 {[%emt 0:00:02]} Bb4 {[%emt 0:00:01]} 4. Nf3 {[%emt 0:00:04]} Nf6 {[%emt 0:00:03]} 5. e3 {[%emt 0:00:05]} O-O {[%emt 0:00:08]} 6. Bd3 {[%emt 0:00:11]} dxc4 {[%emt 0:00:02]} 7. Bxc4 {[%emt 0:00:03]} c5 {[%emt 0:00:01]} 8. O-O {[%emt 0:00:03]} cxd4 {[%emt 0:00:02]} 9. exd4 {[%emt 0:00:03]} b6 {[%emt 0:00:07]} 10. Bg5 {[%emt 0:00:03]} Nbd7 {[%emt 0:00:09]} 11. Rc1 {[%emt 0:00:05]} Bxc3 {[%emt 0:00:11]} 12. bxc3 {[%emt 0:00:04]} Bb7 {[%emt 0:00:02]} 13. Bd3 {[%emt 0:00:05]} Rc8 {[%emt 0:00:15]} 14. Bb1 {[%emt 0:00:03]} h6 {[%emt 0:00:43]} 15. Bh4 {[%emt 0:00:03]} Qc7 {[%emt 0:00:04]} 16. Bg3 {[%emt 0:00:04]} Qc6 {[%emt 0:00:07]} 17. Re1 {[%emt 0:00:06]} Nd5 {[%emt 0:00:15]} 18. Qd3 {[%emt 0:00:05]} g6 {[%emt 0:00:06]} 19. h4 {[%emt 0:00:10]} h5 {[%emt 0:00:03]} 20. Be5 {[%emt 0:00:08]} Nxe5 {[%emt 0:00:30]} 21. Nxe5 {[%emt 0:00:04]} Nf4 {[%emt 0:00:38]} 22. Nxc6 {[%emt 0:00:07]} Nxd3 {[%emt 0:00:03]} 23. Ne7+ {[%emt 0:00:03]} Kg7 {[%emt 0:00:02]} 24. Bxd3 {[%emt 0:00:04]} Rc7 {[%emt 0:00:03]} 25. d5 {[%emt 0:00:05]} Rxe7 {[%emt 0:00:03]} 26. c4 {[%emt 0:00:02]} Rfe8 {[%emt 0:00:04]} 27. d6 {[%emt 0:00:10]} Rd7 {[%emt 0:00:01]} 28. c5 {[%emt 0:00:04]} bxc5 {[%emt 0:00:01]} 29. Rxc5 {[%emt 0:00:01]} Rxd6 {[%emt 0:00:01]} 30. Bb5 {[%emt 0:00:03]} Red8 {[%emt 0:00:02]} 31. Rc7 {[%emt 0:00:03]} Ba6 {[%emt 0:00:01]} 32. Ba4 {[%emt 0:00:03]} Bd3 {[%emt 0:00:04]} 33. Rxa7 {[%emt 0:00:04]} Bf5 {[%emt 0:00:02]} 34. Rc1 {[%emt 0:00:07]} Rd2 {[%emt 0:00:05]} 35. Rcc7 {[%emt 0:00:04]} Rf8 {[%emt 0:00:01]} 36. Bb3 {[%emt 0:00:05]} Rb2 {[%emt 0:00:03]} 37. Re7 {[%emt 0:00:04]} Kf6 {[%emt 0:00:02]} 38. Bc4 {[%emt 0:00:05]} Be4 {[%emt 0:00:02]} 39. a4 {[%emt 0:00:07]} Bd5 {[%emt 0:00:02]} 40. Bb5 {[%emt 0:00:06]} e5 {[%emt 0:00:03]} 41. Red7 {[%emt 0:00:03]} Be6 {[%emt 0:00:02]} 42. Ra6 {[%emt 0:00:03]} Rb1+ {[%emt 0:00:01]} 43. Kh2 {[%emt 0:00:04]} Kf5 {[%emt 0:00:03]} 44. Bd3+ {[%emt 0:00:03]} e4 {[%emt 0:00:01]} 45. Bxb1 {[%emt 0:00:07]} Bxd7 {[%emt 0:00:01]} 46. Ra5+ {[%emt 0:00:06]} Kf4 {[%emt 0:00:03]} 47. Ra7 {[%emt 0:00:09]} Bc6 {[%emt 0:00:02]} 48. a5 {[%emt 0:00:03]} e3 {[%emt 0:00:02]} 49. fxe3+ {[%emt 0:00:04]} Kxe3 {[%emt 0:00:01]} 50. a6 {[%emt 0:00:03]} Kf2 {[%emt 0:00:01]} 51. Rc7 {[%emt 0:00:04]} Ba8 {[%emt 0:00:03]} 52. a7 {[%emt 0:00:04]} Re8 {[%emt 0:00:03]} 53. Rxf7+ {[%emt 0:00:03]} Ke3 {[%emt 0:00:02]} 54. Bxg6 {[%emt 0:00:06]} Rg8 {[%emt 0:00:02]} 55. Rf6 {[%emt 0:00:05]} Kd4 {[%emt 0:00:03]} 56. g3 {[%emt 0:00:03]} Ke5 {[%emt 0:00:02]} 57. Rb6 {[%emt 0:00:10]} 1-0

[Event "Queens Festival Europe 2022"]
[Site "Tornelo"]
[Date "2022.06.19"]
[Round "9.7"]
[White "Kanyamarala, Trisha"]
[Black "Steffensen, Elena"]
[Result "1-0"]
[ECO "E91"]
[WhiteElo "2127"]
[BlackElo "2044"]
[Annotator "NA RC"]
[PlyCount "69"]
[EventDate "2022.06.19"]
[EventType "swiss"]
[EventCountry "NET"]
[SourceTitle "playchess.com"]
[Source "ChessBase"]
[SourceQuality "1"]
[TimeControl "180+2"]

1. d4 {[%emt 0:00:02]} g6 {[%emt 0:00:05]} 2. c4 {[%emt 0:00:03]} Bg7 {[%emt 0:00:01]} 3. Nc3 {[%emt 0:00:01]} Nf6 {[%emt 0:00:09]} 4. e4 {[%emt 0:00:01]} d6 {[%emt 0:00:01]} 5. Nf3 {[%emt 0:00:02]} O-O {[%emt 0:00:04]} 6. Be2 {[%emt 0:00:02]} c6 {[%emt 0:00:02]} 7. O-O {[%emt 0:00:04]} Bg4 {[%emt 0:00:07]} 8. Qc2 {[%emt 0:00:08]} Nbd7 {[%emt 0:00:08]} 9. Rd1 {[%emt 0:00:05]} Qc7 {[%emt 0:00:09]} 10. Be3 {[%emt 0:00:09]} e5 {[%emt 0:00:04]} 11. h3 {[%emt 0:00:04]} Bxf3 {[%emt 0:00:05]} 12. Bxf3 {[%emt 0:00:02]} c5 {[%emt 0:00:11]} 13. dxc5 {[%emt 0:00:24]} Nxc5 {[%emt 0:00:12]} 14. Nb5 {[%emt 0:00:02]} Qa5 {[%emt 0:00:07]} 15. b4 {[%emt 0:00:16]} Qxb4 {[%emt 0:00:08]} 16. Nxd6 {[%emt 0:00:11]} Rad8 {[%emt 0:00:19]} 17. Rab1 {[%emt 0:00:10]} Qa4 {[%emt 0:00:06]} 18. Qxa4 {[%emt 0:00:19]} Nxa4 {[%emt 0:00:03]} 19. Nxb7 {[%emt 0:00:05]} Rxd1+ {[%emt 0:00:13]} 20. Rxd1 {[%emt 0:00:02]} Nc3 {[%emt 0:00:10]} 21. Rc1 {[%emt 0:00:35]} Ncxe4 {[%emt 0:00:02]} 22. c5 {[%emt 0:00:03]} Rc8 {[%emt 0:00:10]} 23. c6 {[%emt 0:00:07]} Bf8 {[%emt 0:00:20]} 24. Bxa7 {[%emt 0:00:08]} Nd6 {[%emt 0:00:05]} 25. Rd1 {[%emt 0:00:11]} e4 {[%emt 0:00:06]} 26. Nxd6 {[%emt 0:00:04]} Rxc6 {[%emt 0:00:10]} 27. Nxe4 {[%emt 0:00:04]} Ra6 {[%emt 0:00:06]} 28. Nxf6+ {[%emt 0:00:04]} Rxf6 {[%emt 0:00:03]} 29. Bd4 {[%emt 0:00:03]} Ra6 {[%emt 0:00:02]} 30. Rd2 {[%emt 0:00:03]} h5 {[%emt 0:00:02]} 31. Bd1 {[%emt 0:00:02]} Bh6 {[%emt 0:00:07]} 32. Be3 {[%emt 0:00:03]} Bxe3 {[%emt 0:00:07]} 33. fxe3 {[%emt 0:00:02]} Re6 {[%emt 0:00:02]} 34. Kf2 {[%emt 0:00:02]} f5 {[%emt 0:00:06]} 35. Bb3 {[%emt 0:00:03]} 1-0